fUSD/lending_fUSD_20250823
["ID","MTS","AMOUNT","RATE_DAILY","PERIOD"]
[380944014,1755909139555,-613.84,0.00015616,2]
[380944015,1755909139564,-689.7,0.00015616,2]
[380944016,1755909139574,-466.72,0.00015616,2]
[380944017,1755909139583,-400.0,0.00015616,2]
[380944018,1755909139593,-400.0,0.00015616,2]
[380944019,1755909139602,-461.07,0.00015616,2]
[380944020,1755909139611,-416.42,0.00015616,2]
[380944021,1755909139621,-1025.78,0.00015616,2]
[380944022,1755909139631,-401.75,0.00015616,2]
[380944023,1755909139640,-834.47,0.00015616,2]
[380944024,1755909139649,-614.04,0.00015616,2]
[380944025,1755909139659,-776.97,0.00015616,2]
[380944026,1755909139668,-472.6,0.00015616,2]
[380944027,1755909139678,-602.14,0.00015616,2]
[380944028,1755909139687,-417.62,0.00015616,2]
[380944029,1755909139696,-400.0,0.00015616,2]
[380944030,1755909139706,-400.0,0.00015616,2]
[380944031,1755909139715,-854.31,0.00015616,2]
[380944032,1755909139724,-400.0,0.00015616,2]
[380944033,1755909139734,-400.0,0.00015616,2]
[380944034,1755909139743,-572.31,0.00015616,2]
[380944035,1755909139752,-419.61,0.00015616,2]
[380944036,1755909139762,-400.0,0.00015616,2]
[380944037,1755909139771,-585.48,0.00015616,2]
[380944038,1755909139782,-488.58,0.00015616,2]
[380944039,1755909139791,-713.34,0.00015616,2]
[380944040,1755909139803,-400.0,0.00015616,2]
[380944041,1755909139814,-869.4,0.00015616,2]
[380944042,1755909139824,-756.22,0.00015616,2]
[380944043,1755909139836,-400.0,0.00015616,2]
[380944044,1755909139846,-494.08,0.00015616,2]
[380944045,1755909139856,-400.0,0.00015616,2]
[380944046,1755909139868,-613.84,0.00015616,2]
[380944047,1755909139881,-400.0,0.00015616,2]
[380944048,1755909139890,-493.02,0.00015616,2]
[380944049,1755909139900,-574.35,0.00015616,2]
[380944050,1755909139910,-993.54,0.00015616,2]
[380944051,1755909139920,-518.26,0.00015616,2]
[380944052,1755909139930,-665.46,0.00015616,2]
[380944053,1755909139940,-587.28,0.00015616,2]
[380944054,1755909139949,-735.95,0.00015616,2]
[380944055,1755909139959,-400.0,0.00015616,2]
[380944056,1755909139969,-615.67,0.00015616,2]
[380944057,1755909139982,-400.0,0.00015616,2]
[380944058,1755909139992,-400.0,0.00015616,2]
[380944059,1755909140001,-400.0,0.00015616,2]
[380944060,1755909140010,-400.0,0.00015616,2]
[380944061,1755909140020,-448.79,0.00015616,2]
[380944062,1755909140030,-983.83,0.00015616,2]
[380944063,1755909140039,-442.91,0.00015616,2]
[380944064,1755909140050,-590.43,0.00015616,2]
[380944065,1755909140059,-794.38,0.00015616,2]
[380944066,1755909140069,-400.0,0.00015616,2]
[380944067,1755909140079,-444.08,0.00015616,2]
[380944068,1755909140088,-546.25,0.00015616,2]
[380944069,1755909140097,-703.24,0.00015616,2]
[380944070,1755909140107,-529.58,0.00015616,2]
[380944071,1755909140116,-849.18,0.00015616,2]
[380944072,1755909140213,-876.02,0.00015616,2]
[380944073,1755909140223,-424.4,0.00015616,2]
[380944074,1755909140232,-492.86,0.00015616,2]
[380944075,1755909140242,-476.2,0.00015616,2]
[380944076,1755909140252,-788.72,0.00015616,2]
[380944077,1755909140261,-756.77,0.00015616,2]
[380944078,1755909140271,-754.08,0.00015616,2]
[380944079,1755909140282,-815.73,0.00015616,2]
[380944080,1755909140292,-400.0,0.00015616,2]
[380944081,1755909140302,-400.0,0.00015616,2]
[380944082,1755909140311,-400.0,0.00015616,2]
[380944083,1755909140319,-400.0,0.00015616,2]
[380944084,1755909140328,-896.11,0.00015616,2]
[380944085,1755909140337,-1011.99,0.00015616,2]
[380944086,1755909140347,-509.28,0.00015616,2]
[380944087,1755909140357,-859.21,0.00015616,2]
[380944088,1755909140366,-640.92,0.00015616,2]
[380944089,1755909140376,-1075.32,0.00015616,2]
[380944090,1755909140386,-400.0,0.00015616,2]
[380944091,1755909140396,-901.15,0.00015616,2]
[380944092,1755909140405,-411.47,0.00015616,2]
[380944093,1755909140415,-400.0,0.00015616,2]
[380944094,1755909140425,-725.33,0.00015616,2]
[380944095,1755909140434,-577.79,0.00015616,2]
[380944096,1755909140444,-425.58,0.00015616,2]
[380944097,1755909140454,-421.13,0.00015616,2]
[380944098,1755909140463,-781.05,0.00015616,2]
[380944099,1755909140473,-606.08,0.00015616,2]
[380944100,1755909140482,-771.47,0.00015616,2]
[380944101,1755909140492,-475.64,0.00015616,2]
[380944102,1755909140502,-632.28,0.00015616,2]
[380944103,1755909140511,-400.0,0.00015616,2]
[380944104,1755909140521,-552.73,0.00015616,2]
[380944105,1755909140533,-702.38,0.00015616,2]
[380944106,1755909140543,-400.0,0.00015616,2]
[380944107,1755909140553,-866.41,0.00015616,2]
[380944108,1755909140562,-677.52,0.00015616,2]
[380944109,1755909140572,-758.47,0.00015616,2]
[380944110,1755909140581,-400.0,0.00015616,2]
[380944111,1755909140591,-400.0,0.00015616,2]
[380944112,1755909140601,-483.75,0.00015616,2]
[380944113,1755909140610,-400.0,0.00015616,2]
[380944114,1755909140620,-620.99,0.00015616,2]
[380944115,1755909140630,-758.84,0.00015616,2]
[380944116,1755909140640,-424.0,0.00015616,2]
[380944117,1755909140650,-779.18,0.00015616,2]
[380944118,1755909140660,-400.0,0.00015616,2]
[380944119,1755909140669,-507.28,0.00015616,2]
[380944120,1755909140679,-400.0,0.00015616,2]
[380944121,1755909140688,-987.41,0.00015616,2]
[380944122,1755909140698,-400.0,0.00015616,2]
[380944123,1755909140708,-400.0,0.00015616,2]
[380944124,1755909140717,-706.05,0.00015616,2]
[380944125,1755909140727,-3029.47,0.00015616,2]
[380944126,1755909140737,-841.05,0.00015616,2]
[380944127,1755909140747,-869.31,0.00015616,2]
[380944128,1755909140757,-640.38,0.00015616,2]
[380944129,1755909140766,-400.0,0.00015616,2]
[380944130,1755909140779,-498.91,0.00015616,2]
[380944131,1755909140788,-615.48,0.00015616,2]
[380944132,1755909140798,-400.0,0.00015616,2]
[380944133,1755909140808,-400.0,0.00015616,2]
[380944134,1755909140818,-503.02,0.00015616,2]
[380944135,1755909140827,-445.28,0.00015616,2]
[380944136,1755909140838,-426.86,0.00015616,2]
[380944137,1755909140847,-577.61,0.00015616,2]
[380944138,1755909140857,-450.11,0.00015616,2]
[380944139,1755909140867,-990.96,0.00015616,2]
[380944140,1755909140877,-400.0,0.00015616,2]
[380944141,1755909140886,-931.14,0.00015616,2]
[380944142,1755909140896,-400.0,0.00015616,2]
[380944143,1755909140905,-554.12,0.00015616,2]
[380944144,1755909140915,-576.72,0.00015616,2]
[380944145,1755909140925,-400.0,0.00015616,2]
[380944146,1755909140934,-737.38,0.00015616,2]
[380944147,1755909140944,-646.79,0.00015616,2]
[380944148,1755909140953,-400.0,0.00015616,2]
[380944149,1755909140963,-400.0,0.00015616,2]
[380944150,1755909140973,-400.0,0.00015616,2]
[380944151,1755909140983,-862.27,0.00015616,2]
[380944152,1755909140992,-380.1762091,0.00015616,2]
[380944153,1755909141002,-658.4,0.00015616,2]
[380944154,1755909141012,-400.0,0.00015616,2]
[380944155,1755909141023,-400.0,0.00015616,2]
[380944156,1755909141033,-400.0,0.00015616,2]
[380944157,1755909141043,-445.91,0.00015616,2]
[380944158,1755909141053,-595.17,0.00015616,2]
[380944159,1755909141062,-492.65,0.00015616,2]
[380944160,1755909141072,-720.25,0.00015616,2]
[380944161,1755909141082,-884.95,0.00015616,2]
[380944162,1755909141092,-600.7,0.00015616,2]
[380944163,1755909141103,-400.0,0.00015616,2]
[380944164,1755909141113,-764.74,0.00015616,2]
[380944165,1755909141123,-891.98,0.00015616,2]
[380944166,1755909141133,-622.74,0.00015616,2]
[380944167,1755909141142,-400.0,0.00015616,2]
[380944168,1755909141152,-874.86,0.00015616,2]
[380944169,1755909141163,-451.38,0.00015616,2]
[380944170,1755909141173,-560.28,0.00015616,2]
[380944171,1755909141182,-400.0,0.00015616,2]
[380944172,1755909141192,-400.0,0.00015616,2]
[380944173,1755909141204,-708.79,0.00015616,2]
[380944174,1755909141219,-667.54,0.00015616,2]
[380944175,1755909141228,-528.48,0.00015616,2]
[380944176,1755909141238,-400.0,0.00015616,2]
[380944177,1755909141249,-400.0,0.00015616,2]
[380944178,1755909141259,-400.0,0.00015616,2]
[380944179,1755909141268,-519.95,0.00015616,2]
[380944180,1755909141280,-870.46,0.00015616,2]
[380944181,1755909141290,-808.28,0.00015616,2]
[380944182,1755909141301,-593.4,0.00015616,2]
[380944183,1755909141310,-554.4,0.00015616,2]
[380944184,1755909141320,-605.98,0.00015616,2]
[380944185,1755909141330,-707.1,0.00015616,2]
[380944186,1755909141340,-731.67,0.00015616,2]
[380944187,1755909141350,-400.0,0.00015616,2]
[380944188,1755909141361,-689.12,0.00015616,2]
[380944189,1755909141371,-400.0,0.00015616,2]
[380944190,1755909141381,-400.0,0.00015616,2]
[380944191,1755909141391,-400.0,0.00015616,2]
[380944192,1755909141401,-1723.92,0.00015616,2]
[380944193,1755909141411,-791.71,0.00015616,2]
[380944194,1755909141420,-601.13,0.00015616,2]
[380944195,1755909141429,-571.32,0.00015616,2]
[380944196,1755909141439,-433.13,0.00015616,2]
[380944197,1755909141448,-976.99,0.00015616,2]
[380944198,1755909141458,-857.87,0.00015616,2]
[380944199,1755909141468,-524.16,0.00015616,2]
[380944200,1755909141477,-400.0,0.00015616,2]
[380944201,1755909141486,-400.0,0.00015616,2]
[380944202,1755909141496,-763.62,0.00015616,2]
[380944203,1755909141505,-400.0,0.00015616,2]
[380944204,1755909141515,-956.1,0.00015616,2]
[380944205,1755909141525,-557.4,0.00015616,2]
[380944206,1755909141535,-526.88,0.00015616,2]
[380944207,1755909141544,-778.36,0.00015616,2]
[380944208,1755909141554,-424.56,0.00015616,2]
[380944209,1755909141563,-1050.46,0.00015616,2]
[380944210,1755909141574,-733.75,0.00015616,2]
[380944211,1755909141583,-519.43,0.00015616,2]
[380944212,1755909141593,-1054.58,0.00015616,2]
[380944213,1755909141604,-400.0,0.00015616,2]
[380944214,1755909141614,-970.43,0.00015616,2]
[380944215,1755909141627,-303.11560359,0.00015616,2]
[380944216,1755909141637,-546.29,0.00015616,2]
[380944217,1755909141647,-640.8,0.00015616,2]
[380944218,1755909141659,-400.0,0.00015616,2]
[380944219,1755909141669,-610.91,0.00015616,2]
[380944220,1755909141679,-400.0,0.00015616,2]
[380944221,1755909141689,-582.36,0.00015616,2]
[380944222,1755909141699,-401.5,0.00015616,2]
[380944223,1755909141709,-832.07,0.00015616,2]
[380944224,1755909141720,-1000.0,0.00015616,2]
[380944225,1755909141729,-445.27,0.00015616,2]
[380944226,1755909141740,-400.0,0.00015616,2]
[380944227,1755909141750,-997.13,0.00015616,2]
[380944228,1755909141760,-644.56,0.00015616,2]
[380944229,1755909141770,-707.89,0.00015616,2]
[380944230,1755909141781,-453.25,0.00015616,2]
[380944231,1755909141791,-715.18,0.00015616,2]
[380944232,1755909141801,-400.0,0.00015616,2]
[380944233,1755909141811,-685.45,0.00015616,2]
[380944234,1755909141821,-949.39,0.00015616,2]
[380944235,1755909141830,-840.83,0.00015616,2]
[380944236,1755909141840,-400.0,0.00015616,2]
[380944237,1755909141850,-1448.86,0.00015616,2]
[380944238,1755909141862,-400.0,0.00015616,2]
[380944239,1755909141874,-982.96,0.00015616,2]
[380944240,1755909141884,-593.92,0.00015616,2]
[380944241,1755909141894,-400.0,0.00015616,2]
[380944242,1755909141903,-648.93,0.00015616,2]
[380944243,1755909141913,-739.87,0.00015616,2]
[380944244,1755909141922,-2980.04,0.00015616,2]
[380944245,1755909141933,-546.71,0.00015616,2]
[380944246,1755909141942,-1454.26,0.00015616,2]
[380944247,1755909141952,-800.57,0.00015616,2]
[380944248,1755909141961,-400.0,0.00015616,2]
[380944249,1755909141971,-692.75,0.00015616,2]
[380944250,1755909141980,-990.2,0.00015616,2]
[380944251,1755909141990,-400.0,0.00015616,2]
[380944252,1755909141999,-699.15,0.00015616,2]
[380944253,1755909142008,-400.0,0.00015616,2]
[380944254,1755909142018,-606.93,0.00015616,2]
[380944255,1755909142028,-400.0,0.00015616,2]
[380944256,1755909142038,-555.82,0.00015616,2]
[380944257,1755909142048,-659.71,0.00015616,2]
[380944258,1755909142058,-400.0,0.00015616,2]
[380944259,1755909142068,-400.0,0.00015616,2]
[380944260,1755909142078,-400.0,0.00015616,2]
[380944261,1755909142087,-693.63,0.00015616,2]
[380944262,1755909142097,-400.0,0.00015616,2]
[380944263,1755909142109,-3054.01,0.00015616,2]
[380944264,1755909142119,-553.64,0.00015616,2]
[380944265,1755909142128,-400.0,0.00015616,2]
[380944266,1755909142138,-400.0,0.00015616,2]
[380944267,1755909142148,-400.0,0.00015616,2]
[380944268,1755909142158,-667.54,0.00015616,2]
[380944269,1755909142167,-7354.27,0.00015616,2]
[380944270,1755909142177,-437.68,0.00015616,2]
[380944271,1755909142186,-296.98,0.00015616,2]
[380944272,1755909142196,-514.02,0.00015616,2]
[380944273,1755909142210,-400.0,0.00015616,2]
[380944274,1755909142220,-564.76,0.00015616,2]
[380944275,1755909142231,-400.0,0.00015616,2]
[380944276,1755909142240,-2143.12,0.00015616,2]
[380944277,1755909142250,-622.59,0.00015616,2]
[380944278,1755909142260,-428.31,0.00015616,2]
[380944279,1755909142270,-400.0,0.00015616,2]
[380944280,1755909142285,-400.0,0.00015616,2]
[380944281,1755909142295,-400.0,0.00015616,2]
[380944282,1755909142305,-400.0,0.00015616,2]
[380944283,1755909142315,-746.39,0.00015616,2]
[380944284,1755909142325,-873.6,0.00015616,2]
[380944285,1755909142335,-701.17,0.00015616,2]
[380944286,1755909142344,-506.14,0.00015616,2]
[380944287,1755909142355,-464.14,0.00015616,2]
[380944288,1755909142365,-400.0,0.00015616,2]
[380944289,1755909142375,-667.86,0.00015616,2]
[380944290,1755909142385,-430.84,0.00015616,2]
[380944291,1755909142395,-723.11,0.00015616,2]
[380944292,1755909142405,-400.0,0.00015616,2]
[380944293,1755909142415,-400.0,0.00015616,2]
[380944294,1755909142425,-400.0,0.00015616,2]
[380944295,1755909142435,-467.67,0.00015616,2]
[380944296,1755909142445,-403.81,0.00015616,2]
[380944297,1755909142455,-462.24,0.00015616,2]
[380944298,1755909142466,-400.0,0.00015616,2]
[380944299,1755909142475,-400.0,0.00015616,2]
[380944300,1755909142485,-465.9,0.00015616,2]
[380944301,1755909142495,-400.0,0.00015616,2]
[380944302,1755909142505,-426.68,0.00015616,2]
[380944303,1755909142515,-422.36,0.00015616,2]
[380944304,1755909142525,-550.31,0.00015616,2]
[380944305,1755909142535,-610.92,0.00015616,2]
[380944306,1755909142545,-400.0,0.00015616,2]
[380944307,1755909142555,-400.0,0.00015616,2]
[380944308,1755909142565,-584.01,0.00015616,2]
[380944309,1755909142582,-578.59,0.00015616,2]
[380944310,1755909142596,-585.08,0.00015616,2]
[380944311,1755909142606,-849.52,0.00015616,2]
[380944312,1755909142616,-566.15,0.00015616,2]
[380944313,1755909142626,-506.71,0.00015616,2]
[380944314,1755909142636,-400.0,0.00015616,2]
[380944315,1755909142646,-400.0,0.00015616,2]
[380944316,1755909142656,-879.86,0.00015616,2]
[380944317,1755909142666,-3024.23,0.00015616,2]
[380944318,1755909142676,-400.0,0.00015616,2]
[380944319,1755909142686,-657.96,0.00015616,2]
[380944320,1755909142697,-782.19,0.00015616,2]
[380944321,1755909142707,-523.88,0.00015616,2]
[380944322,1755909142718,-578.04,0.00015616,2]
[380944323,1755909142728,-607.68,0.00015616,2]
[380944324,1755909142738,-484.15,0.00015616,2]
[380944325,1755909142749,-1191.42,0.00015616,2]
[380944326,1755909142759,-700.38,0.00015616,2]
[380944327,1755909142769,-776.73,0.00015616,2]
[380944328,1755909142781,-840.01,0.00015616,2]
[380944329,1755909142791,-483.84,0.00015616,2]
[380944330,1755909142802,-631.44,0.00015616,2]
[380944331,1755909142811,-400.0,0.00015616,2]
[380944332,1755909142821,-758.06,0.00015616,2]
[380944333,1755909142832,-587.88,0.00015616,2]
[380944334,1755909142842,-400.0,0.00015616,2]
[380944335,1755909142852,-400.0,0.00015616,2]
[380944336,1755909142862,-665.99,0.00015616,2]
[380944337,1755909142872,-522.42,0.00015616,2]
[380944338,1755909142883,-400.0,0.00015616,2]
[380944339,1755909142894,-400.0,0.00015616,2]
[380944340,1755909142904,-883.81,0.00015616,2]
[380944341,1755909142914,-893.73,0.00015616,2]
[380944342,1755909142924,-678.75,0.00015616,2]
[380944343,1755909142934,-400.0,0.00015616,2]
[380944344,1755909142944,-666.33,0.00015616,2]
[380944345,1755909142954,-400.0,0.00015616,2]
[380944346,1755909142965,-400.0,0.00015616,2]
[380944347,1755909142975,-761.73,0.00015616,2]
[380944348,1755909142985,-842.68,0.00015616,2]
[380944349,1755909142995,-649.71,0.00015616,2]
[380944350,1755909143005,-467.86,0.00015616,2]
[380944351,1755909143015,-1320.96,0.00015616,2]
[380944352,1755909143025,-697.79,0.00015616,2]
[380944353,1755909143035,-1111.45,0.00015616,2]
[380944354,1755909143045,-507.88,0.00015616,2]
[380944355,1755909143055,-517.79,0.00015616,2]
[380944356,1755909143064,-400.0,0.00015616,2]
[380944357,1755909143074,-689.28,0.00015616,2]
[380944358,1755909143084,-430.22,0.00015616,2]
[380944359,1755909143094,-538.01,0.00015616,2]
[380944360,1755909143104,-400.0,0.00015616,2]
[380944361,1755909143114,-1038.23,0.00015616,2]
[380944362,1755909143124,-758.69,0.00015616,2]
[380944363,1755909143135,-484.43,0.00015616,2]
[380944364,1755909143144,-543.95,0.00015616,2]
[380944365,1755909143155,-1312.56,0.00015616,2]
[380944366,1755909143165,-402.89,0.00015616,2]
[380944367,1755909143175,-400.0,0.00015616,2]
[380944368,1755909143185,-1961.29,0.00015616,2]
[380944369,1755909143201,-960.13,0.00015616,2]
[380944370,1755909143215,-400.0,0.00015616,2]
[380944371,1755909143226,-667.43,0.00015616,2]
[380944372,1755909143237,-681.41,0.00015616,2]
[380944373,1755909143252,-604.74,0.00015616,2]
[380944374,1755909143263,-400.0,0.00015616,2]
[380944375,1755909143276,-793.34,0.00015616,2]
[380944376,1755909143289,-484.07,0.00015616,2]
[380944377,1755909143300,-768.43,0.00015616,2]
[380944378,1755909143311,-739.78,0.00015616,2]
[380944379,1755909143322,-839.48,0.00015616,2]
[380944380,1755909143333,-411.22,0.00015616,2]
[380944381,1755909143344,-960.56,0.00015616,2]
[380944382,1755909143355,-400.0,0.00015616,2]
[380944383,1755909143366,-425.81,0.00015616,2]
[380944384,1755909143377,-654.0,0.00015616,2]
[380944385,1755909143388,-400.0,0.00015616,2]
[380944386,1755909143399,-652.65,0.00015616,2]
[380944387,1755909143410,-933.74,0.00015616,2]
[380944388,1755909143421,-405.49,0.00015616,2]
[380944389,1755909143431,-520.86,0.00015616,2]
[380944390,1755909143442,-559.08,0.00015616,2]
[380944391,1755909143453,-506.8179435,0.00015616,2]
[380944392,1755909143464,-884.24,0.00015616,2]
[380944393,1755909143475,-429.94,0.00015616,2]
[380944394,1755909143486,-400.0,0.00015616,2]
[380944395,1755909143497,-665.36,0.00015616,2]
[380944396,1755909143508,-424.97,0.00015616,2]
[380944397,1755909143519,-431.94,0.00015616,2]
[380944398,1755909143530,-400.0,0.00015616,2]
[380944399,1755909143541,-662.92,0.00015616,2]
[380944400,1755909143551,-400.0,0.00015616,2]
[380944401,1755909143563,-416.81,0.00015616,2]
[380944402,1755909143574,-400.0,0.00015616,2]
[380944403,1755909143585,-400.0,0.00015616,2]
[380944404,1755909143596,-279.78542221,0.00015616,2]
[380944405,1755909143611,-693.63,0.00015616,2]
[380944406,1755909143623,-455.44,0.00015616,2]
[380944407,1755909143634,-674.56,0.00015616,2]
[380944408,1755909143646,-723.42,0.00015616,2]
[380944409,1755909143657,-400.0,0.00015616,2]
[380944410,1755909143668,-652.2,0.00015616,2]
[380944411,1755909143679,-987.34,0.00015616,2]
[380944412,1755909143691,-400.0,0.00015616,2]
[380944413,1755909143702,-494.24,0.00015616,2]
[380944414,1755909143712,-1304.91,0.00015616,2]
[380944415,1755909143723,-1043.71,0.00015616,2]
[380944416,1755909143734,-400.0,0.00015616,2]
[380944417,1755909143745,-1121.06,0.00015616,2]
[380944418,1755909143755,-400.0,0.00015616,2]
[380944419,1755909143766,-659.86,0.00015616,2]
[380944420,1755909143777,-400.0,0.00015616,2]
[380944421,1755909143787,-912.7,0.00015616,2]
[380944422,1755909143798,-400.0,0.00015616,2]
[380944423,1755909143809,-603.68,0.00015616,2]
[380944424,1755909143820,-792.16,0.00015616,2]
[380944425,1755909143831,-400.0,0.00015616,2]
[380944426,1755909143842,-609.49,0.00015616,2]
[380944427,1755909143853,-400.0,0.00015616,2]
[380944428,1755909143863,-400.0,0.00015616,2]
[380944429,1755909143874,-400.0,0.00015616,2]
[380944430,1755909143885,-792.27,0.00015616,2]
[380944431,1755909143896,-426.25,0.00015616,2]
[380944432,1755909143907,-981.73,0.00015616,2]
[380944433,1755909143917,-400.0,0.00015616,2]
[380944434,1755909143928,-466.29,0.00015616,2]
[380944435,1755909143939,-400.0,0.00015616,2]
[380944436,1755909143950,-1201.08,0.00015616,2]
[380944437,1755909143961,-1058.6,0.00015616,2]
[380944438,1755909143972,-738.76,0.00015616,2]
[380944439,1755909143986,-825.5,0.00015616,2]
[380944440,1755909143997,-400.0,0.00015616,2]
[380944441,1755909144008,-958.1,0.00015616,2]
[380944442,1755909144020,-1111.07,0.00015616,2]
[380944443,1755909144031,-468.64,0.00015616,2]
[380944444,1755909144042,-509.27,0.00015616,2]
[380944445,1755909144053,-593.59,0.00015616,2]
[380944446,1755909144064,-881.56,0.00015616,2]
[380944447,1755909144075,-400.0,0.00015616,2]
[380944448,1755909144086,-1368.88,0.00015616,2]
[380944449,1755909144098,-750.95,0.00015616,2]
[380944450,1755909144110,-706.36,0.00015616,2]
[380944451,1755909144121,-401.82,0.00015616,2]
[380944452,1755909144132,-728.88,0.00015616,2]
[380944453,1755909144142,-557.47,0.00015616,2]
[380944454,1755909144153,-400.0,0.00015616,2]
[380944455,1755909144164,-952.67,0.00015616,2]
[380944456,1755909144175,-692.7,0.00015616,2]
[380944457,1755909144186,-400.0,0.00015616,2]
[380944458,1755909144197,-400.0,0.00015616,2]
[380944459,1755909144210,-400.0,0.00015616,2]
[380944460,1755909144224,-779.31,0.00015616,2]
[380944461,1755909144235,-1582.88,0.00015616,2]
[380944462,1755909144247,-577.4,0.00015616,2]
[380944463,1755909144258,-1122.02,0.00015616,2]
[380944464,1755909144269,-564.14,0.00015616,2]
[380944465,1755909144282,-786.68,0.00015616,2]
[380944466,1755909144293,-956.63,0.00015616,2]
[380944467,1755909144304,-400.0,0.00015616,2]
[380944468,1755909144316,-1198.24,0.00015616,2]
[380944469,1755909144326,-673.4,0.00015616,2]
[380944470,1755909144337,-848.19,0.00015616,2]
[380944471,1755909144348,-437.85,0.00015616,2]
[380944472,1755909144358,-704.4,0.00015616,2]
[380944473,1755909144369,-548.8,0.00015616,2]
[380944474,1755909144380,-507.03,0.00015616,2]
[380944475,1755909144391,-437.95,0.00015616,2]
[380944476,1755909144402,-400.0,0.00015616,2]
[380944477,1755909144413,-556.41,0.00015616,2]
[380944478,1755909144424,-1155.73,0.00015616,2]
[380944479,1755909144434,-431.52,0.00015616,2]
[380944480,1755909144447,-850.86,0.00015616,2]
[380944481,1755909144457,-400.0,0.00015616,2]
[380944482,1755909144468,-818.95,0.00015616,2]
[380944483,1755909144479,-400.0,0.00015616,2]
[380944484,1755909144490,-487.71,0.00015616,2]
[380944485,1755909144502,-838.37,0.00015616,2]
[380944486,1755909144512,-1159.8,0.00015616,2]
[380944487,1755909144523,-484.71,0.00015616,2]
[380944488,1755909144534,-400.0,0.00015616,2]
[380944489,1755909144545,-506.13,0.00015616,2]
[380944490,1755909144557,-430.8,0.00015616,2]
[380944491,1755909144568,-749.94,0.00015616,2]
[380944492,1755909144578,-924.83,0.00015616,2]
[380944493,1755909144590,-1313.72,0.00015616,2]
[380944494,1755909144601,-400.0,0.00015616,2]
[380944495,1755909144612,-1444.09,0.00015616,2]
[380944496,1755909144623,-765.27,0.00015616,2]
[380944497,1755909144634,-400.0,0.00015616,2]
[380944498,1755909144645,-401.45258469,0.00015616,2]
[380944499,1755909144657,-400.0,0.00015616,2]
[380944500,1755909144667,-444.7,0.00015616,2]
[380944501,1755909144679,-6099.92,0.00015616,2]
[380944502,1755909144690,-332.04481264,0.00015616,2]
[380944503,1755909144701,-993.51,0.00015616,2]
[380944504,1755909144712,-544.24,0.00015616,2]
[380944505,1755909144723,-605.79,0.00015616,2]
[380944506,1755909144736,-400.0,0.00015616,2]
[380944507,1755909144748,-830.79,0.00015616,2]
[380944508,1755909144760,-400.0,0.00015616,2]
[380944509,1755909145149,-1071.62,0.00015616,2]
[380944510,1755909145162,-514.4,0.00015616,2]
[380944511,1755909145173,-662.65,0.00015616,2]
[380944512,1755909145183,-574.14,0.00015616,2]
[380944513,1755909145194,-477.51,0.00015616,2]